Cogmind - Beta 11.1 @@@ ROGUE MODE // 2022.05.31 @ 10:32:58 // Winter2019/RPGLIKE Player: ktur Result: Destroyed by D-53 Grenadier with Mini Grenade Launcher Performance ------------- Evolutions (0) 0 Regions Visited (2) 400 Robots Destroyed (57) 285 Value Destroyed (1510) 1510 Prototype IDs (4) 80 Alien Tech Used (0) 0 Bonus (249) 249 TOTAL SCORE: 2524 Bonus ------- High Alert Combat Kills 249 Cogmind --------- Core Integrity 0/600 Matter 158/300 Energy 250/250 System Corruption 0% Temperature Cool (0) Movement Treading (160) Location -10/Mines Parts ------- > --- POWER (1) -------- Ion Engine > --- PROPULSION (1) --- Light Treads > --- UTILITY (1) ------ Heat Sink > --- WEAPON (1) ------- Assault Rifle > --- INVENTORY (2) ---- Grenade Launcher Hammer Peak State ------------ > --- POWER ------------ Ion Engine > --- PROPULSION ------- Light Treads > --- UTILITY ---------- Heat Sink > --- WEAPON ----------- Medium Laser > --- INVENTORY -------- Grenade Launcher [Rating: 4] Favorites ----------- Power Ion Engine Engine Ion Engine Propulsion Light Treads Treads Light Treads Utility Heat Sink Device Heat Sink Weapon Assault Rifle Energy Gun Medium Laser Ballistic Gun Assault Rifle Launcher Grenade Launcher Build | -11 -10 -10 ------- Run | Scr Mat Min Slots Evolved . | . . . Power . | . . . Propulsion . | . . . Utility . | . . . Weapon . | . . . Parts Attached 19 | 3 6 10 Power 1 | 1 . . Engine 1 | 1 . . Core . | . . . Reactor . | . . . Propulsion 2 | 1 1 . Treads 2 | 1 1 . Leg . | . . . Wheel . | . . . Hover . | . . . Flight . | . . . Utility 2 | . 2 . Device 2 | . 2 . Storage . | . . . Processor . | . . . Hackware . | . . . Protection . | . . . Artifact . | . . . Weapon 14 | 1 3 10 Energy Gun 2 | 1 1 . Energy Cannon . | . . . Ballistic Gun 6 | . 1 5 Ballistic Cannon . | . . . Launcher 6 | . 1 5 Special Weapon . | . . . Impact Weapon . | . . . Slashing Weapon . | . . . Piercing Weapon . | . . . Special Melee Weapon . | . . . Unidentified Prototypes . | . . . Parts Lost . | . . . Power . | . . . Propulsion . | . . . Utility . | . . . Weapon . | . . . Highest Loss Streak . | . . . To Critical Strikes . | . . . Average Slot Usage (%) 96 | . 94 100 Engine 25 | . 25 25 Treads 24 | . 24 25 Device 21 | . 19 25 Energy Gun 6 | . 9 . Ballistic Gun 17 | . 14 23 Naked Turns . | . . . Heaviest Build 9 | 7 8 9 Greatest Support 20 | 20 20 20 Greatest Overweight (x) . | . . . Average Overweight (x) . | . . . Largest Inventory Capacity 2 | . 2 2 Average Capacity 1 | . 1 2 Most Carried 2 | . 2 2 Average Carried 1 | . 1 2 Final Capacity 2 | . 2 2 Final Carried 2 | . 2 2 Class Distribution -------------------- 93% | Hacker-Mutant 6% | Mutant Dominant Class ---------------- Hacker-Mutant | -10/Materials Hacker-Mutant | -10/Mines Resources | -11 -10 -10 ----------- Run | Scr Mat Min Matter Collected 892 | 230 423 239 Remotely . | . . . Salvage Created 1321 | . 907 414 Parts 121 | . 88 33 Haulers Intercepted 2 | . 2 . Recyclers Shooed 2 | . 1 1 Parts Field Recycled . | . . . Retrieved Matter . | . . . Parts Self-Destructed . | . . . Prevented . | . . . Kills | -11 -10 -10 ------- Run | Scr Mat Min Combat Hostiles Destroyed 49 | . 30 19 Melee 1 | . 1 . Guns 30 | . 22 8 AOE 17 | . 6 11 Classes Destroyed 9 | . 7 2 Worker 3 | . 3 . Builder 4 | . 3 1 Tunneler 2 | . 2 . Hauler 2 | . 2 . Recycler 2 | . . 2 Watcher 1 | . 1 . Swarmer 21 | . 9 12 Grunt 23 | . 21 2 Assembled 5 | . . 5 Best Kill Streak 9 | . 9 5 Combat Bots Only 9 | . 9 5 Max Kills in Single Turn 3 | . 3 2 Gunslinging . | . . . Exploded 3 | . 3 2 Melee 1 | . 1 . Uniques/NPCs Destroyed . | . . . Combat | -11 -10 -10 -------- Run | Scr Mat Min Damage Taken 2013 | . 1178 835 Core 1654 | . 966 688 Absorbed by Shields . | . . . Redirected to Core 1115 | . 652 463 Regen/Repaired (Parts) 44 | . 44 . Core Remaining (%) 100 | 100 . . Volleys Fired 274 | . 205 69 Largest 1 | . 1 1 Hottest 50 | . 50 30 Shots Fired 274 | . 205 69 Gun 258 | . 202 56 Cannon . | . . . Launcher 16 | . 3 13 Special . | . . . Kinetic 169 | . 113 56 Thermal 89 | . 89 . Explosive 16 | . 3 13 Electromagnetic . | . . . Robot Hit Streak 11 | . 11 5 Robot Miss Streak 5 | . 5 2 Penetration Max . | . . . Secondary Targets . | . . . Shots Hit Robots 155 | . 121 34 Core Hits 99 | . 64 35 Critical Kills . | . . . Critical Parts Destroyed 1 | . . 1 Critical Strikes 4 | . 3 1 Burn 3 | . 3 . Destroy 1 | . . 1 Melee Attacks . | . . . Impact . | . . . Slashing . | . . . Piercing . | . . . Sneak Attacks . | . . . Combat Hostiles . | . . . Follow-up Attacks . | . . . Damage Inflicted 3137 | . 1973 1164 Guns 1964 | . 1557 407 Cannons . | . . . Explosions 1137 | . 402 735 Melee . | . . . Ramming 36 | . 14 22 Kinetic 1191 | . 784 407 Thermal 850 | . 850 . Explosive 1060 | . 325 735 Electromagnetic . | . . . Impact . | . . . Slashing . | . . . Piercing . | . . . Highest Corruption . | . . . Average Corruption . | . . . Corruption Purged . | . . . Corruption Blocked . | . . . Overload Shots . | . . . Overflow Damage 53 | . 40 13 Projectiles . | . . . Explosions 53 | . 40 13 Melee . | . . . Knockbacks . | . . . Impact . | . . . Kinetic . | . . . Secondary . | . . . Self-Inflicted Damage 27 | . . 27 Shots 2 | . . 2 Rammed 13 | . 7 6 Targets Rammed 16 | . 9 7 Kicked . | . . . Crushed 3 | . 2 1 Highest Temperature 298 | . 298 . Average Temperature 77 | . 77 . Received Heat Transfer 522 | . 516 6 Effects 2 | . 2 . Energy Bleed 1 | . 1 . Interference 1 | . 1 . Siege Activations . | . . . Robots Corrupted . | . . . Combat Hostiles . | . . . Parts Fried . | . . . Impact Corruptions . | . . . Robots Melted 1 | . 1 . Combat Hostiles 1 | . 1 . Parts Melted 5 | . 5 . Heat Transferred 2566 | . 2566 . Parts Sabotaged . | . . . Parts Stolen . | . . . Parts Stripped . | . . . Power Chain Reactions . | . . . Missiles Intercepted . | . . . Alert | -11 -10 -10 ------- Run | Scr Mat Min Peak Influence 918 | . 918 819 Initial 353 | . . 353 Average 533 | . 504 642 Maximum Alert Level 3 | . 3 3 Low Security (%) 14 | 100 18 . Level 1 14 | . 22 . Level 2 38 | . 24 70 Level 3 31 | . 34 28 Level 4 . | . . . Level 5 . | . . . High Security . | . . . Max Security . | . . . Squads Dispatched 12 | . 12 . Investigation 11 | . 11 . Extermination . | . . . Reinforcement 1 | . 1 . Assault . | . . . Garrison . | . . . Intercept . | . . . Searches Triggered . | . . . Construction Impeded . | . . . Haulers Reinforced . | . . . Active Scanning Responses . | . . . Cargo Convoy Interrupts . | . . . Stealth | -11 -10 -10 --------- Run | Scr Mat Min Distress Signals . | . . . Communications Jammed . | . . . Distress Signals . | . . . Times Spotted 70 | . 43 27 Peak Tracking Total 10 | . 6 10 Tactical Retreats 1 | . 1 . Traps | -11 -10 -10 ------- Run | Scr Mat Min Traps Triggered 1 | . 1 . Indirectly . | . . . Trap Hack Attempts . | . . . Triggered . | . . . Disarmed 2 | . 2 . Reprogrammed . | . . . Reused . | . . . Traps Extracted . | . . . Installed . | . . . Triggered . | . . . Machines | -11 -10 -10 ---------- Run | Scr Mat Min Machines Disabled 11 | . 2 9 Max in Single Turn 6 | . 1 6 Machines Sabotaged 6 | . 6 . Garrisons Compromised . | . . . Overloaded Fab Kills . | . . . Hacking | -11 -10 -10 --------- Run | Scr Mat Min Machines Accessed 10 | . 10 . Terminals 7 | . 7 . Fabricators . | . . . Repair Stations 1 | . 1 . Recycling Units 2 | . 2 . Scanalyzers . | . . . Garrison Access . | . . . Total Hacks 23 | . 23 . Successful 17 | . 17 . Failed 6 | . 6 . Catastrophic . | . . . Database Lockouts . | . . . Manual 13 | . 13 . Terminals 15 | . 15 . Fabricators . | . . . Repair Stations 6 | . 6 . Recycling Units 2 | . 2 . Scanalyzers . | . . . Garrison Access . | . . . Terminal Hacks 3 | . 3 . Prototype ID Bank 2 | . 2 . Disarm Traps 1 | . 1 . Fabricator Hacks . | . . . Repair Station Hacks 5 | . 5 . Scan Component 3 | . 3 . Repair 2 | . 2 . Recycling Unit Hacks . | . . . Scanalyzer . | . . . Garrison Access Hacks . | . . . Unauthorized Hacks 9 | . 9 . Terminals 7 | . 7 . Sabotage 7 | . 7 . Fabricators . | . . . Repair Stations . | . . . Recycling Units 2 | . 2 . Tunnel 2 | . 2 . Scanalyzers . | . . . Garrison Access . | . . . Data Cores Recovered . | . . . Used . | . . . Hacking Detections 4 | . 4 . Full Trace Events 1 | . 1 . Feedback Events . | . . . Feedback Blocked . | . . . Robot Schematics Acquired . | . . . Robots Built . | . . . Authchips . | . . . Time . | . . . Total Robot Build Rating . | . . . Part Schematics Acquired . | . . . Parts Built . | . . . Authchips . | . . . Time . | . . . Total Part Build Rating . | . . . Parts Repaired 2 | . 2 . Time 26 | . 26 . Parts Recycled . | . . . Recycled Matter . | . . . Retrieved Matter . | . . . Retrieved Components . | . . . Parts Scanalyzed . | . . . Part Schematics Acquired . | . . . Parts Damaged . | . . . Bothacking | -11 -10 -10 ------------ Run | Scr Mat Min Used RIF Installer . | . . . Robots Hacked . | . . . Non-combat . | . . . Combat . | . . . Robot Hacks Applied . | . . . Relay Couplers Released . | . . . Fabnet Peak Effective % . | . . . Robots Rewired . | . . . Allies Hacked . | . . . Hacks Repelled . | . . . Allies | -11 -10 -10 -------- Run | Scr Mat Min Total Allies . | . . . Largest Group . | . . . Highest-Rated Group . | . . . Highest-Rated Ally . | . . . Total Orders . | . . . Ally Attacks . | . . . Total Damage . | . . . Kills . | . . . Allies Corrupted . | . . . Allies Melted . | . . . Intel | -11 -10 -10 ------- Run | Scr Mat Min Robot Analysis Total . | . . . Derelict Logs Recovered . | . . . Drone Launches . | . . . Drone Recoveries . | . . . Exploration | -11 -10 -10 ------------- Run | Scr Mat Min Turns Passed 2885 | 97 1835 953 Spaces Moved 1353 | 60 804 489 Core 2 | 2 . . Treads 1351 | 58 804 489 Legs . | . . . Wheels . | . . . Hover . | . . . Flight . | . . . Fastest Speed 50 | 50 160 160 Average Speed 159 | 156 160 160 Slowest Speed 160 | 160 160 160 Overloaded Moves . | . . . Propulsion Burnouts . | . . . Robots Hopped . | . . . Cave-ins Triggered . | . . . Exploration Rate (%) 61 | 4 98 82 Regions Visited 2 Branch Regions 1 Pre-discovered Areas 2 | . 2 . Known Exits Taken . | . . . Unknown Exits Taken 2 | 1 1 . Scrap Searched 1 | . . 1 Spaces Dug 20 | . . 20 Terrain Destroyed 161 | . 41 120 Melee . | . . . Projectile . | . . . AOE 161 | . 41 120 Terrain Rammed . | . . . Walls Destroyed . | . . . Machines Disabled . | . . . Actions | -11 -10 -10 --------- Run | Scr Mat Min Total 1784 | 62 1140 582 Wait 66 | . 63 3 Move 1351 | 59 803 489 Hop . | . . . Pick Up 2 | . 2 . Fast Attach 7 | 3 4 . Attach . | . . . Detach . | . . . Swap 12 | . 2 10 Drop 1 | . 1 . Fire 274 | . 205 69 Melee . | . . . Ram . | . . . Kick . | . . . Crush 16 | . 9 7 Escape Stasis . | . . . Rewire . | . . . Trap . | . . . Miscellaneous 55 | . 51 4 Route ------- -11/Scrapyard -10/Materials (discovered 5 exits: [*Mat x3] / [*Min x2]) -10/Mines (discovered 2 exits: [*Mat x2]) History --------- Turn | Location | Event 2 | -11/Scrapyard | Met Revision 17 25 | -11/Scrapyard | Discovered new exit (range 16) 98 | -11/Scrapyard | Entered Materials 479 | -10/Materials | Build established: Hacker-Mutant 541 | -10/Materials | Reached level 2 582 | -10/Materials | Discovered new exit (range 16) 598 | -10/Materials | Destroyed 9 combat bots 676 | -10/Materials | Discovered new exit (range 8) 824 | -10/Materials | Discovered new exit (range 12) 925 | -10/Materials | Discovered new exit (range 17) 951 | -10/Materials | Reached level 3 964 | -10/Materials | Repaired Lgt. Treads 978 | -10/Materials | Repaired Heat Sink 1139 | -10/Materials | Core integrity fell below 50% 1360 | -10/Materials | Reached level 4 1394 | -10/Materials | Discovered new exit (range 17) 1786 | -10/Materials | Reached level 5 1933 | -10/Materials | Entered Mines 1982 | -10/Mines | Discovered new exit (range 10) 2217 | -10/Mines | Reached level 6 2256 | -10/Mines | Discovered new exit (range 8) 2844 | -10/Mines | Assembled infested the area 2849 | -10/Mines | Assisted by a Guerilla fighting off Assembled 2883 | -10/Mines | Core integrity fell below 20% 2886 | -10/Mines | Destroyed by D-53 Grenadier with Mini Grenade Launcher Last Messages --------------- way!" 02862_ HV Slug penetrates Wall. 02862_ as-02445 destroyed. 02864_ HV Slug penetrates Wall. 02866_ HV Slug penetrates as-45145. 02866_ as-45145 suffers critical hit (Destroy). 02866_ as-45145 destroyed. 02866_ HV Slug penetrates Earth. 02866_ Destroyed Asb. Hover Unit. 02866_ as-31188 destroyed. 02866_ as-27054 destroyed. 02868_ as-35092 destroyed. 02868_ as-42349 destroyed. 02868_ HV Slug penetrates as-33637. 02868_ as-33637 suffers critical hit (Destroy). 02868_ as-33637 destroyed. 02868_ as-33371 destroyed. 02869_ The unstable cave ceiling collapses. 02870_ as-14638 destroyed. 02871_ The unstable cave ceiling collapses. Map ----- +----------------------------------------------------+ | ??????????????????????####""""####""# #####??? | | ??????????????????????# "#??? | | ??????????????????????# "#??? | | ??????????????????????# "##?? | | ??????????????????????# ##? | | ??????????????????????# ##### | | ??????????????????????# | | ??????????????????????# #### | | ??????????????????????# ##?? | | ??????????????????????# "#??? | | ??????????????????????# "#??? | | ??????????????????????###### "" "" "####??? | | ???????????????????????????##### ### ##?????? | | ???????????????????????????????###??###??????? | | ?????????????????????????????????????????????? | | ??????????????????????#####??????????????????? | | ?????????????????????## ###???????????????## | | ?????????????????????# ##?????????????## | | ?????????????????????# #?????????????# | | ??????????????????????# #?????????????# | | ??????????????????###### ##????????????# | | ???????????????#### ## ###????????### | | ???????????????# ##???????# | | ??????????????## ##??????# | | ?????????????## ##?????# ### | | ?????????????# @ ####### #?? | | ?????????????## d #; #?? | | ????????? % d ### ## #######?? | | ?????? ## ##?## ### #???????? | | ????? ? ##???#####?# #??????## | | ???????? #######??????????# #?????# | | ???????? ?????????????????# #????# | | ??????? ?????????????????## #????# | | ??????? ?????????????????## ##### | | ???????# ?????????????????# | | ????????# ??????????????????# | | ????????##### ???????????????????## | | ????????????##????????????????????##### ## | | ???????????????????????????????????????# ## | | ?????????????????????##???????????????## ##? | | ????????????????????? ???????????????# ### | | ?????????????????????# ???????######### # | | ?????????????????????# ???????# # # # | | ?????????????????????# ######## # # =[= | | ????????????????????## [=* # | | ???????????????????## *%[ ## | | ??????????????????## ######## #### | | ??????????????????# % ##??# ####### | | ??????????????????## #=##???#########?##### | | ???????????????????####=#??????????????# | +----------------------------------------------------+ Best States ------------- Heat Dissipation 35 Energy Generation 10 Energy Capacity 250 Matter Stores 300 Matter Capacity 300 Sight Range 18 Terrain Scan Density 10 Evasion (%) 40 Recoil Reduction 1 Offensive Hacking 10 Defensive Hacking 10 Item Schematics ----------------- None Robot Schematics ------------------ None Fabricated ------------ Nothing Alien Tech Used ----------------- None Achievements -------------- None Challenges ------------ None RPGLIKE | -11 -10 -10 --------- Run | Scr Mat Min Levels Raised 5 | . 4 1 XP Earned 10828 | 3000 6003 1825 XP Spent 2450 | . 2450 . Upgrades 8 | . 8 . Inventory Capacity 2 | . 2 . Sight Range 2 | . 2 . Hack Attack % 2 | . 2 . Hack Defense % 2 | . 2 . Protomatter Created 400 | . 371 29 Integrity Restored 1112 | . 1043 69 Core 1035 | . 966 69 Parts 77 | . 77 . Protomatter Decayed 107 | . 104 3 Game ------ Seed GaussHeatRigger Manual? 0 Play Time 00:14:01 Cumulative 446.0 hours Start 2022.05.31 @ 10:18:53 End 2022.05.31 @ 10:32:58 Sessions 1 Manual Loads 0 Difficulty Rogue Special Mode Winter2019/RPGLIKE Game No. 425 Rogue 425 Adventurer 0 Explorer 0 Win Type - Total 21 Types 13/2/3/2/0/0/0/1/0 Lore% 93 Gallery% 91 Achievement% 77 Wizard Run 0 Options --------- ASCII 0 Keyboard 0 Movement Arrows Keybinds 0 Fullscreen 1 Font 18/Smallcaps Map View 76x50 Tactical HUD 1 Map Filters NONE Filters NONE Steam 1 RUN: b41cad48-9224-4fc9-8deb-f25ea88f1b5b